bitfinex-derivatives/quotes_SOLF0:USTF0_20260102
["timestamp","ask_amount","ask_price","bid_price","bid_amount"]
[1767369700766,99.57470448,129.05,128.96,2.21054658]
[1767369700972,9.0398729,129.04,128.96,9.13815675]
[1767369701168,9.0398729,129.04,128.96,2.15415675]
[1767369701360,0.05198017,129.01,128.99,0.05520028]
[1767369701555,97.51483158,129.05,128.99,0.05520028]
[1767369701556,91.7,129.05,128.99,0.05520028]
[1767369701762,2.0598729,129.07,128.99,0.05520028]
[1767369702064,2.0598729,129.05,128.97,6.9833]
[1767369702770,0.05508453,129.02,129.0,0.0592063]
[1767369703867,91.68,129.07,129.0,0.0592063]
[1767369704062,9.0375729,129.08,129.0,2.21336305]
[1767369704256,9.0375729,129.08,128.97,200.311]
[1767369704257,2.0598729,129.08,128.97,93.83415675]
[1767369704461,2.0598729,129.08,128.98,2.15415675]
[1767369704959,0.05567488,129.04,129.02,0.0489158]
[1767369705766,0.05567488,129.04,128.98,2.15415675]
[1767369706763,0.05567488,129.04,129.0,0.05142346]
[1767369711560,0.05567488,129.04,129.0,2.20558021]
[1767369711766,2.0598729,129.09,129.0,2.20558021]
[1767369711964,2.0598729,129.09,129.0,2.15415675]
[1767369712377,6.52513495,129.06,128.97,2.15415675]
[1767369712675,0.05573423,129.03,129.0,0.05403839]
[1767369718066,98.5981,129.08,129.0,2.16767793]
[1767369718380,100.60110591,129.08,129.0,2.11363954]
[1767369718574,438.40846205,129.15,129.02,110.70403954]
[1767369718575,6.46826796,129.13,129.02,110.70403954]
[1767369718784,2.00300591,129.16,129.05,108.5596]
[1767369718980,0.05496137,129.12,129.09,0.05007205]
[1767369719371,2.00300591,129.16,129.09,0.05007205]
[1767369719884,2.00300591,129.12,129.05,2.11363954]
[1767369720083,91.62,129.11,129.05,2.11363954]
[1767369720380,114.95106796,129.15,129.03,2.11363954]
[1767369720580,2.00300591,129.14,129.04,2.11363954]
[1767369720778,91.62,129.13,129.08,0.04907223]
[1767369721175,91.62,129.13,129.04,2.11363954]
[1767369721176,2.00300591,129.12,129.04,2.11363954]
[1767369721376,98.5761,129.11,129.04,9.09333954]
[1767369721577,93.60300591,129.11,129.04,2.11363954]
[1767369721976,6.9767,129.1,129.04,2.11363954]
[1767369722176,0.05643488,129.08,129.06,0.05495599]
[1767369722490,110.47130591,129.17,129.06,2.16859553]
[1767369722788,91.6,129.16,129.08,6.9772]
[1767369722972,2.00300591,129.16,129.06,2.11363954]
[1767369723177,2.00300591,129.13,129.04,2.11363954]
[1767369723372,2.00300591,129.13,129.05,6.9791]
[1767369723578,0.05758922,129.1,129.07,0.05915291]
[1767369726685,2.00300591,129.09,129.01,2.11363954]
[1767369726872,93.58300591,129.09,129.01,2.11363954]
[1767369727072,2.00300591,129.07,128.98,2.11363954]
[1767369727785,0.05701914,129.04,129.01,0.04896148]
[1767369729288,91.58,129.09,129.01,2.16260102]
[1767369729478,4.46526205,129.12,129.02,2.11363954]
[1767369729779,2.00300591,129.13,129.04,2.11363954]
[1767369730184,0.05595876,129.1,129.07,0.05517031]
[1767369730690,2.00300591,129.13,129.07,0.05517031]
[1767369731880,0.05797188,129.11,129.07,0.05517031]
[1767369732087,2.06097779,129.11,129.03,6.9798]
[1767369732285,93.58300591,129.11,129.03,6.9798]
[1767369732583,6.9766,129.1,129.03,6.9798]
[1767369732784,4.46526205,129.13,129.03,2.11363954]
[1767369732987,2.00300591,129.14,129.07,0.05081246]
[1767369733183,93.58300591,129.14,129.07,0.05081246]
[1767369733575,2.00300591,129.17,129.07,2.164452]
[1767369733780,93.58300591,129.16,129.07,2.11363954]
[1767369734088,0.0580344,129.13,129.1,0.05944316]
[1767369735294,0.0580344,129.13,129.04,110.68393954]
[1767369735589,2.00300591,129.14,129.05,2.11363954]
[1767369736086,2.00300591,129.17,129.07,2.11363954]
[1767369736289,0.05483374,129.13,129.11,0.05127768]
[1767369738286,0.05483374,129.13,129.07,2.11363954]
[1767369738482,2.05783965,129.13,129.04,93.69363954]
[1767369738682,2.00300591,129.13,129.04,93.69363954]
[1767369739286,0.05910435,129.1,129.07,0.05297389]
[1767369740792,6.9748,129.14,129.07,7.03097389]
[1767369741686,6.9749,129.13,129.07,0.05297389]
[1767369741888,0.05616521,129.11,129.04,91.58]
[1767369742087,2.00300591,129.1,129.0,2.11363954]
[1767369742800,2.00300591,129.08,129.0,2.11363954]
[1767369743091,0.05331703,129.05,129.03,0.05371011]
[1767369743791,0.05331703,129.05,129.0,9.09503954]
[1767369744795,0.05331703,129.05,129.01,0.0581081]
[1767369745183,0.05331703,129.05,129.01,7.0394081]
[1767369745385,0.05331703,129.05,129.01,0.0581081]
[1767369746192,2.10462052,129.11,129.01,2.01080768]
[1767369746497,1.93912139,129.14,129.03,108.58]
[1767369746691,1.93912139,129.14,129.04,2.14117913]
[1767369747289,0.05908876,129.1,129.08,0.059444]
[1767369748090,1.93912139,129.17,129.08,2.20062313]
[1767369748389,1.93912139,129.17,129.08,2.14117913]
[1767369748587,1.93912139,129.17,129.09,6.9769]
[1767369748984,0.05284701,129.14,129.12,0.05208329]
[1767369750400,0.05284701,129.14,129.08,2.14117913]
[1767369751386,0.05284701,129.14,129.1,0.05601059]
[1767369756205,91.54,129.18,129.1,2.19718972]
[1767369756394,91.54,129.18,129.1,2.14117913]
[1767369756593,1.93912139,129.18,129.07,2.14117913]
[1767369757001,1.93912139,129.16,129.07,2.14117913]
[1767369757205,0.05491978,129.13,129.1,0.05823016]
[1767369759198,6.9725,129.18,129.1,2.19940929]
[1767369759399,106.57609629,129.19,129.1,2.14117913]
[1767369760094,106.57609629,129.19,129.08,108.5385]
[1767369760095,113.54789629,129.19,129.11,2.14117913]
[1767369760309,0.04980299,129.16,129.14,0.04957348]
[1767369761397,0.04980299,129.16,129.09,9.11817913]
[1767369761597,1.93912139,129.17,129.09,2.14117913]
[1767369761798,1.93912139,129.18,129.09,2.14117913]
[1767369762306,1.93912139,129.18,129.12,6.9754]
[1767369762508,1.93912139,129.18,129.11,2.14117913]
[1767369762705,0.04995647,129.16,129.14,0.05101391]
[1767369762904,1.98907786,129.16,129.06,2.14117913]
[1767369763101,1.93912139,129.16,129.06,2.14117913]
[1767369763294,6.9738,129.15,129.08,6.9771]
[1767369763794,6.9738,129.15,129.1,0.05902713]
[1767369764007,0.05670196,129.13,129.1,0.05902713]
[1767369767299,8.97102335,129.13,129.05,2.14117913]
[1767369767602,1.93912139,129.13,129.05,2.14117913]
[1767369768417,0.04890518,129.1,129.08,0.05727104]
[1767369769407,0.04890518,129.1,129.05,2.14117913]
[1767369770410,0.04890518,129.1,129.06,0.05558261]
[1767369771304,1.98802657,129.1,129.02,9.12157913]
[1767369771511,1.93912139,129.1,129.02,9.12157913]
[1767369771906,6.9771,129.09,129.02,9.12157913]
[1767369772306,0.05930434,129.07,129.04,0.05497248]
[1767369773217,0.05930434,129.07,128.99,2.14117913]
[1767369773406,8.91682139,129.08,128.99,2.14117913]
[1767369773607,1.93912139,129.08,128.99,2.14117913]
[1767369773806,1.93912139,129.06,128.96,2.14117913]
[1767369774215,1.93912139,129.05,128.96,9.12477913]
[1767369774411,0.04932409,129.02,128.99,0.0586241]
[1767369775417,1.98844548,129.02,128.93,93.70117913]
[1767369775612,1.93912139,129.02,128.93,93.70117913]
[1767369776410,0.05957391,128.99,128.96,0.05497765]
[1767369776913,0.05957391,128.99,128.9,2.02682021]
[1767369777116,2.01937886,129.0,128.91,2.02682021]
[1767369777319,98.541,129.02,128.93,9.01242021]
[1767369777510,2.01937886,129.01,128.93,2.02682021]
[1767369777917,0.05817452,128.98,128.96,0.05191396]
[1767369778119,0.05817452,128.98,128.9,200.2498]
[1767369778120,0.05817452,128.98,128.9,100.57392021]
[1767369778323,2.01937886,128.99,128.9,100.57392021]
[1767369778715,2.01937886,128.99,128.9,9.01392021]
[1767369779417,0.05854241,128.96,128.93,0.05919026]
[1767369779615,0.05854241,128.96,128.88,9.01482021]
[1767369779813,2.01937886,128.97,128.88,2.02682021]
[1767369780209,2.01937886,128.95,128.87,98.5686]
[1767369780522,2.01937886,128.95,128.85,2.02682021]
[1767369780818,91.58,128.96,128.89,2.06897765]
[1767369781214,93.59937886,128.96,128.89,0.04215744]
[1767369781520,2.01937886,128.96,128.89,0.04215744]
[1767369781721,0.05339109,128.94,128.89,0.04215744]
[1767369783227,0.05339109,128.94,128.89,9.05657765]
[1767369784919,2.01937886,128.99,128.9,9.01392021]
[1767369785120,93.63937886,128.99,128.9,9.01392021]
[1767369785428,100.62197886,128.99,128.91,9.01332021]
[1767369786026,108.5639,129.06,128.94,2.0809131]
[1767369786027,2.01937886,129.02,128.94,2.0809131]
[1767369786326,108.6409,128.97,128.84,110.76322021]
[1767369786556,108.6574,128.95,128.85,2.02682021]
[1767369786823,2.01937886,128.93,128.82,2.02682021]
[1767369787023,0.0547562,128.89,128.86,0.05420565]
[1767369787330,0.0547562,128.89,128.82,2.02682021]
[1767369787528,9.06223506,128.89,128.8,6.9924]
[1767369787731,2.01937886,128.89,128.8,2.02682021]
[1767369787932,2.01937886,128.89,128.81,2.02682021]
[1767369788230,0.05291183,128.86,128.84,0.05450234]
[1767369788429,91.64,128.94,128.84,2.08132255]
[1767369788633,2.01937886,128.93,128.84,2.02682021]
[1767369788826,2.01937886,128.93,128.84,9.01722021]
[1767369789427,0.0507197,128.9,128.87,0.05793996]
[1767369789823,9.24898694,128.96,128.87,0.05793996]
[1767369790024,2.01937886,128.94,128.86,2.02682021]
[1767369790633,98.6244,128.96,128.86,2.02682021]
[1767369790836,91.64,128.96,128.87,2.02682021]
[1767369791038,0.05635451,128.92,128.9,0.05176823]
[1767369791538,2.01937886,128.96,128.9,0.05176823]
[1767369792122,2.01937886,128.96,128.87,2.02682021]
[1767369792329,93.67937886,128.95,128.87,2.02682021]
[1767369792531,2.01937886,128.93,128.84,2.02682021]
[1767369793025,0.05657087,128.9,128.87,0.05810434]
[1767369793229,2.01937886,128.96,128.87,2.08492455]
[1767369793431,2.01937886,128.95,128.87,2.02682021]
[1767369793736,9.00417886,128.95,128.87,9.01562021]
[1767369794127,91.66,128.96,128.87,2.02682021]
[1767369794335,0.05734549,128.93,128.9,0.05827106]
[1767369794535,93.67937886,128.98,128.9,0.05827106]
[1767369794837,2.01937886,128.97,128.88,9.01502021]
[1767369795539,0.05792507,128.94,128.91,0.04947485]
[1767369796133,91.66,128.98,128.91,0.04947485]
[1767369797030,2.01937886,129.0,128.91,2.07629506]
[1767369797236,0.05159938,128.97,128.94,0.05502143]
[1767369798232,91.66,129.01,128.94,2.08184164]
[1767369798437,8.99997886,129.03,128.95,2.02682021]
[1767369798740,2.01937886,129.03,128.95,2.02682021]
[1767369799134,2.01937886,129.03,128.95,9.01132021]
[1767369799330,0.05652797,129.0,128.98,0.05429432]
[1767369800142,0.05652797,129.0,128.93,9.01212021]
[1767369801030,0.05652797,129.0,128.95,0.05278674]
[1767369801744,114.4707465,129.86,128.95,0.05278674]
[1767369801745,2.01937886,129.06,128.95,2.07960695]
[1767369801941,6.9798,129.04,128.96,9.01062021]
[1767369802135,2.01937886,129.04,128.96,2.02682021]
[1767369802741,0.05937626,129.01,128.99,0.05898643]
[1767369803449,9.00137886,129.0,128.92,6.9861]
[1767369803644,2.01937886,129.0,128.91,2.02682021]
[1767369803937,113.06074607,129.01,128.89,2.02682021]
[1767369803938,2.01937886,128.99,128.89,2.02682021]
[1767369804237,6.9831,128.98,128.91,6.9867]
[1767369804444,0.0596779,128.96,128.93,0.05329435]
[1767369805744,0.0596779,128.96,128.89,2.02682021]
[1767369805949,2.03691761,128.96,128.88,6.9879]
[1767369806249,108.6296,128.98,128.87,6.9889]
[1767369806250,93.61723971,128.95,128.87,6.9889]
[1767369806948,0.05465466,128.92,128.9,0.05714808]
[1767369807641,91.64,128.99,128.9,2.05767028]
[1767369807839,93.56065324,128.99,128.9,2.0005222]
[1767369808234,1.92065324,128.99,128.91,2.0005222]
[1767369808439,108.653,128.95,128.83,2.0005222]
[1767369808635,96.11654607,128.94,128.83,2.0005222]
[1767369808837,103.10194607,128.94,128.84,2.0005222]
[1767369809045,91.66,128.94,128.85,2.0005222]
[1767369809234,91.66,128.94,128.86,2.0005222]
[1767369809440,204.76694607,128.95,128.86,2.0005222]
[1767369809748,0.05112119,128.91,128.86,2.0005222]
[1767369810150,0.05112119,128.91,128.83,2.0005222]
[1767369810350,108.6728,128.93,128.83,2.0005222]
[1767369810351,108.6782,128.92,128.83,2.0005222]
[1767369810548,108.6848,128.91,128.83,2.0005222]
[1767369810747,0.05484512,128.88,128.83,2.0005222]
[1767369811047,0.05484512,128.88,128.8,2.0005222]
[1767369811348,91.66,128.88,128.8,2.0005222]
[1767369811738,0.0536214,128.85,128.83,0.05226551]
[1767369813450,0.0536214,128.85,128.79,2.0005222]
[1767369813854,91.68,128.88,128.8,8.9931222]
[1767369814054,91.68,128.88,128.8,2.0005222]
[1767369814855,0.05291204,128.85,128.83,0.05214261]
[1767369815954,108.687,128.91,128.83,0.05214261]
[1767369816156,108.687,128.91,128.8,2.0005222]
[1767369816157,91.68,128.9,128.8,2.0005222]
[1767369816451,6.9883,128.89,128.81,8.9926222]
[1767369816650,91.68,128.9,128.82,2.0005222]
[1767369816861,0.05961016,128.87,128.85,0.05100242]
[1767369818856,98.6872,128.91,128.85,0.05100242]
[1767369819057,6.9874,128.9,128.85,0.05100242]
[1767369819961,0.05499165,128.89,128.85,0.05100242]
[1767369820558,0.05499165,128.89,128.77,2.0005222]
[1767369820559,113.16604607,128.88,128.77,2.0005222]
[1767369820764,91.7,128.87,128.77,2.0005222]
[1767369821453,91.7,128.87,128.81,0.05284045]
[1767369821764,0.05346438,128.83,128.81,0.05284045]
[1767369822260,0.05346438,128.83,128.77,2.0005222]
[1767369823368,0.05346438,128.83,128.73,2.0005222]
[1767369823557,96.15654607,128.84,128.73,2.0005222]
[1767369823758,91.7,128.83,128.73,2.0005222]
[1767369823959,6.9918,128.82,128.74,8.9964222]
[1767369824153,6.9918,128.82,128.71,200.5679]
[1767369824154,91.7,128.83,128.75,2.0005222]
[1767369824558,91.7,128.83,128.78,0.05471914]
[1767369824559,0.05299042,128.8,128.78,0.05471914]
[1767369824861,6.991,128.84,128.78,0.05471914]
[1767369825158,98.691,128.84,128.78,0.05471914]
[1767369825756,0.05355443,128.82,128.78,0.05471914]
[1767369826966,0.05355443,128.82,128.73,8.9966222]
[1767369827267,204.93114607,128.83,128.73,8.9966222]
[1767369827769,6.9921,128.82,128.74,2.0005222]
[1767369827966,0.05097617,128.79,128.77,0.05229472]
[1767369828369,6.991,128.84,128.77,0.05229472]
[1767369828569,91.72,128.83,128.77,0.05229472]
[1767369828771,91.72,128.83,128.76,2.0005222]
[1767369828963,91.72,128.84,128.77,2.0005222]
[1767369829269,113.18664607,128.86,128.77,2.0005222]
[1767369829476,113.18664607,128.86,128.74,2.0005222]
[1767369829477,6.9918,128.82,128.74,2.0005222]
[1767369829774,98.7318,128.82,128.74,2.0005222]
[1767369830163,6.9918,128.82,128.74,2.0005222]
[1767369830473,6.9908,128.84,128.77,0.05911032]
[1767369830670,6.9908,128.84,128.77,2.05963252]
[1767369830970,6.9908,128.84,128.77,9.05393252]
[1767369831475,0.0521052,128.82,128.77,2.05963252]
[1767369832270,7.0441052,128.82,128.77,0.05911032]
[1767369832769,0.0521052,128.82,128.77,0.05911032]
[1767369833370,0.0521052,128.82,128.77,2.05963252]
[1767369835871,0.0521052,128.82,128.77,9.05383252]
[1767369836876,0.0521052,128.82,128.77,0.05911032]
[1767369838870,0.0521052,128.82,128.77,9.15970086]
[1767369839079,0.0521052,128.82,128.78,2.10619054]
[1767369839469,108.6929,128.9,128.78,2.10619054]
[1767369839674,91.76,128.89,128.78,2.10619054]
[1767369839873,4.45654607,128.89,128.78,2.10619054]
[1767369840174,91.76,128.88,128.78,2.10619054]
[1767369840374,0.05744474,128.84,128.82,0.05244015]
[1767369840578,6.9892,128.87,128.82,0.05244015]
[1767369840778,91.76,128.88,128.82,0.05244015]
[1767369841579,0.05490019,128.86,128.82,0.05244015]
[1767369842874,0.05490019,128.86,128.77,93.86619054]
[1767369843083,108.7264,128.86,128.77,2.10619054]
[1767369843267,6.9918,128.82,128.74,2.10619054]
[1767369843473,91.74,128.82,128.74,9.10179054]
[1767369843672,108.7492,128.84,128.74,9.10179054]
[1767369843974,0.05644442,128.8,128.74,2.10619054]
[1767369844570,0.05644442,128.8,128.7,2.10619054]
[1767369844775,91.74,128.81,128.71,2.10619054]
[1767369844975,0.05212358,128.77,128.75,0.05335186]
[1767369846380,4.45654607,128.86,128.76,2.10619054]
[1767369846588,91.76,128.87,128.76,2.10619054]
[1767369846879,113.17214607,128.88,128.76,2.10619054]
[1767369847078,6.99,128.86,128.79,6.9933]
[1767369847277,0.05221688,128.84,128.81,0.05892171]
[1767369848573,113.12984607,128.93,128.81,2.16511225]
[1767369848875,96.21654607,128.93,128.81,2.10619054]
[1767369849082,4.45654607,128.93,128.81,2.10619054]
[1767369849282,96.21654607,128.93,128.81,2.10619054]
[1767369849477,204.87224607,128.95,128.84,2.10619054]
[1767369849678,204.87224607,128.95,128.86,0.05531572]
[1767369849978,204.87224607,128.95,128.85,6.99]
[1767369850574,0.05364349,128.91,128.89,0.05249872]
[1767369852681,91.74,128.95,128.89,0.05249872]
[1767369853780,0.05826395,128.93,128.89,0.05249872]
[1767369854684,0.05826395,128.93,128.89,2.15868926]
[1767369854885,91.74,128.97,128.89,9.14628926]
[1767369855077,6.9832,128.98,128.9,2.10619054]
[1767369855783,0.05382845,128.95,128.93,0.05470026]
[1767369856486,0.05382845,128.95,128.87,2.10619054]
[1767369856688,113.08644607,128.98,128.87,2.10619054]
[1767369856890,204.80644607,128.98,128.87,2.10619054]
[1767369857480,0.05799931,128.94,128.91,0.0537633]
[1767369859086,0.05799931,128.94,128.87,2.10619054]
[1767369859282,0.05799931,128.94,128.85,9.09589054]
[1767369859589,113.11054607,128.95,128.85,2.10619054]
[1767369860092,0.04991369,128.91,128.89,0.05910573]
[1767369860476,0.04991369,128.91,128.85,2.10619054]
[1767369861487,0.04991369,128.91,128.82,100.81749054]
[1767369861693,0.05011056,128.88,128.82,2.10619054]
[1767369862990,0.05011056,128.88,128.84,0.04922583]
[1767369863186,4.50665663,128.88,128.84,0.04922583]
[1767369863584,11.49525663,128.88,128.84,0.04922583]
[1767369864293,0.05011056,128.88,128.84,0.04922583]
[1767369869492,7.03861056,128.88,128.84,0.04922583]
[1767369869693,0.05011056,128.88,128.84,0.04922583]
[1767369870500,6.9891,128.87,128.84,0.04922583]
[1767369870801,6.9891,128.87,128.79,2.37320428]
[1767369870994,6.9884,128.89,128.79,2.37320428]
[1767369871299,207.67305601,128.9,128.81,2.37320428]
[1767369871694,0.05582344,128.87,128.84,0.05562627]
[1767369872902,91.72,128.89,128.84,2.42883055]
[1767369873296,108.6787,128.92,128.84,2.42883055]
[1767369873496,91.72,128.91,128.84,2.37320428]
[1767369873893,0.0510138,128.89,128.86,0.0506074]
[1767369874101,108.6674,128.93,128.86,0.0506074]
[1767369874494,200.3795,128.94,128.86,0.0506074]
[1767369874696,200.3795,128.94,128.84,2.37320428]
[1767369875004,0.05667543,128.9,128.88,0.05245485]
[1767369876611,0.05667543,128.9,128.84,2.37320428]
[1767369877000,0.05667543,128.9,128.84,9.36370428]
[1767369877507,0.05667543,128.9,128.86,0.04947012]
[1767369877708,0.05510937,128.89,128.86,0.04947012]
[1767369878204,0.05510937,128.89,128.8,200.4944]
[1767369878205,0.05510937,128.89,128.8,94.09320428]
[1767369878512,6.9884,128.88,128.81,9.36490428]
[1767369878801,91.72,128.89,128.81,2.37320428]
[1767369879207,0.0551097,128.86,128.84,0.05629992]
[1767369882507,7.0446097,128.86,128.8,6.9926]
[1767369882717,0.0551097,128.86,128.79,2.37320428]
[1767369882908,108.715,128.88,128.79,2.37320428]
[1767369883514,91.72,128.87,128.79,2.37320428]
[1767369883813,7.04085651,128.85,128.82,0.04932221]
[1767369884405,7.04085651,128.85,128.79,2.37320428]
[1767369884805,6.9908,128.84,128.77,6.9943]
[1767369885113,6.9908,128.84,128.77,9.36750428]
[1767369885304,108.727,128.86,128.77,2.37320428]
[1767369885614,108.727,128.86,128.8,0.05527437]
[1767369885615,0.04933173,128.83,128.8,0.05527437]
[1767369886116,7.04053173,128.83,128.8,0.05527437]
[1767369887015,0.04933173,128.83,128.8,0.05527437]
[1767369888515,0.04933173,128.83,128.75,2.37320428]
[1767369888717,6.9906,128.84,128.77,2.37320428]
[1767369888916,98.7306,128.84,128.77,2.37320428]
[1767369889319,6.9912,128.83,128.77,2.37320428]
[1767369889712,0.05797887,128.81,128.79,0.05010564]
[1767369890312,0.05797887,128.81,128.73,200.5729]
[1767369890313,0.05797887,128.81,128.74,9.36910428]
[1767369890515,200.4862,128.84,128.74,9.36910428]
[1767369891320,0.05126981,128.8,128.78,0.05023357]
[1767369891511,0.05126981,128.8,128.74,2.37320428]
[1767369892115,7.04406981,128.8,128.74,2.37320428]
[1767369894721,7.04406981,128.8,128.74,9.36920428]
[1767369894925,7.04406981,128.8,128.74,2.37320428]
[1767369895115,6.9934,128.79,128.74,2.37320428]
[1767369896111,0.05126981,128.8,128.74,2.37320428]
[1767369897825,0.05126981,128.8,128.75,9.45239993]
[1767369898028,0.04928202,128.79,128.75,9.45239993]
[1767369898625,108.7125,128.88,128.78,2.45699993]
[1767369898829,91.76,128.87,128.78,2.45699993]
[1767369899218,91.76,128.88,128.78,2.45699993]
[1767369899720,0.05930015,128.84,128.82,0.04930022]
[1767369901324,0.05930015,128.84,128.76,91.76]
[1767369901325,0.05930015,128.84,128.76,2.45699993]
[1767369901514,108.7383,128.85,128.76,2.45699993]
[1767369901515,91.76,128.85,128.76,2.45699993]
[1767369901717,6.9901,128.85,128.79,2.45699993]
[1767369902124,0.05658454,128.83,128.76,2.45699993]
[1767369902421,0.05892497,128.81,128.73,2.45699993]
[1767369902727,0.05214754,128.78,128.73,2.45699993]
[1767369902921,0.05214754,128.78,128.7,94.21699993]
[1767369903124,0.05844757,128.75,128.7,2.45699993]
[1767369903525,0.05844757,128.75,128.71,9.45449993]
[1767369903826,91.76,128.82,128.72,2.45699993]
[1767369904424,91.76,128.83,128.72,2.45699993]
[1767369904633,0.05592134,128.79,128.76,0.05598212]
[1767369904930,0.05592134,128.79,128.69,2.45699993]
[1767369905142,108.7799,128.8,128.69,2.45699993]
[1767369905430,91.76,128.79,128.69,2.45699993]
[1767369905938,0.05970216,128.75,128.7,2.45699993]
[1767369906528,98.7536,128.79,128.71,9.45459993]
[1767369906725,6.9936,128.79,128.72,2.45699993]
[1767369906931,91.76,128.82,128.72,2.45699993]
[1767369907136,116.00345601,128.84,128.72,2.45699993]
[1767369907331,132.0129,128.86,128.73,2.45699993]
[1767369907332,108.7329,128.86,128.73,2.45699993]
[1767369907631,91.76,128.85,128.78,2.50895804]
[1767369907830,91.76,128.86,128.78,2.45699993]
[1767369908220,91.76,128.86,128.74,200.6042]
[1767369908221,6.992,128.82,128.74,9.45279993]
[1767369908428,200.4898,128.86,128.75,2.45699993]
[1767369908626,0.05847894,128.82,128.79,0.05491125]
[1767369909426,0.05847894,128.82,128.74,2.45699993]
[1767369909628,6.991,128.84,128.76,2.45699993]
[1767369910324,6.9912,128.83,128.76,2.45699993]
[1767369910528,0.05282996,128.81,128.73,2.45699993]
[1767369910834,91.78,128.8,128.69,2.45699993]
[1767369911235,6.994,128.78,128.7,2.45699993]
[1767369912037,0.04957984,128.75,128.7,2.45699993]
[1767369912534,0.04957984,128.75,128.71,6.9975]
[1767369912734,91.78,128.8,128.72,2.45699993]
[1767369913132,6.9926,128.81,128.73,2.45699993]
[1767369913845,0.05120704,128.78,128.76,0.05137214]
[1767369914743,6.9927,128.81,128.76,0.05137214]
[1767369915235,6.9924,128.81,128.76,0.05137214]
[1767369915845,0.05573602,128.8,128.76,0.05137214]
[1767369916147,7.04863602,128.8,128.76,0.05137214]
[1767369916442,0.05573602,128.8,128.76,0.05137214]
[1767369917834,7.04863602,128.8,128.76,0.05137214]
[1767369919241,0.05573602,128.8,128.76,0.05137214]
[1767369922741,0.05573602,128.8,128.7,2.45699993]
[1767369922742,6.9941,128.78,128.7,2.45699993]
[1767369923044,91.78,128.8,128.72,2.45699993]
[1767369923846,0.05665281,128.77,128.75,0.05606533]
[1767369926149,0.05665281,128.77,128.72,2.45699993]
[1767369926348,0.05665281,128.77,128.69,94.2201853]
[1767369926538,4.47268425,128.79,128.69,94.2201853]
[1767369926743,6.9944,128.77,128.7,9.56046381]
[1767369927239,0.05423782,128.75,128.7,9.56046381]
[1767369928057,91.78,128.79,128.69,91.78]
[1767369928058,6.9938,128.79,128.73,2.56226381]
[1767369928344,91.78,128.81,128.73,2.56226381]
[1767369928739,6.9929,128.8,128.73,9.55886381]
[1767369929153,0.05831797,128.78,128.75,0.05394448]
[1767369930851,7.05231797,128.78,128.7,2.56226381]
[1767369931152,91.78,128.79,128.71,6.9976]
[1767369931855,0.05371169,128.76,128.71,6.9976]
[1767369932055,91.78,128.79,128.73,2.56226381]
[1767369932249,91.78,128.79,128.7,2.56226381]
[1767369932451,4.47268425,128.8,128.7,2.56226381]
[1767369932647,96.25268425,128.8,128.7,2.56226381]
[1767369933151,0.0497852,128.76,128.67,2.56226381]
[1767369933350,4.47268425,128.77,128.67,2.56226381]
[1767369933557,6.9956,128.75,128.69,6.9987]
[1767369933857,108.7939,128.78,128.69,6.9987]
[1767369933858,205.04068425,128.79,128.69,9.56096381]
[1767369934156,0.054678,128.75,128.69,9.56096381]
[1767369934349,0.054678,128.75,128.66,2.56226381]
[1767369934546,0.04980394,128.72,128.66,2.56226381]
[1767369935552,0.04980394,128.72,128.67,2.56226381]
[1767369936753,113.26068425,128.79,128.67,2.56226381]
[1767369936954,205.06068425,128.79,128.67,2.56226381]
[1767369937457,205.06068425,128.79,128.66,200.6897]
[1767369937458,91.8,128.78,128.69,2.56226381]
[1767369937643,0.05020026,128.75,128.72,0.04980394]
[1767369938256,6.996,128.74,128.67,6.9998]
[1767369938750,6.996,128.74,128.67,9.56206381]
[1767369939158,0.05423335,128.72,128.67,9.56206381]
[1767369939354,0.05423335,128.72,128.68,2.56226381]
[1767369939555,91.8,128.77,128.68,2.56226381]
[1767369939953,91.8,128.77,128.66,200.6897]
[1767369939954,91.8,128.77,128.7,9.56046381]
[1767369940256,108.7819,128.8,128.7,9.56046381]
[1767369940257,200.5819,128.8,128.7,9.56046381]
[1767369940555,0.05395622,128.76,128.74,0.04952587]
[1767369941349,0.05395622,128.76,128.7,2.56226381]
[1767369941750,7.04895622,128.76,128.7,9.55996381]
[1767369942651,6.9955,128.75,128.7,2.56226381]
[1767369942850,0.05395622,128.76,128.67,2.56226381]
[1767369943055,113.27768425,128.77,128.67,2.56226381]
[1767369943056,0.0492784,128.73,128.67,2.56226381]
[1767369943453,0.0492784,128.73,128.67,9.56156381]
[1767369944852,7.0458784,128.73,128.67,9.56156381]
[1767369945053,0.0492784,128.73,128.68,9.56156381]
[1767369945261,0.0492784,128.73,128.68,2.56226381]
[1767369945660,113.26098425,128.79,128.7,2.56226381]
[1767369945963,205.06098425,128.79,128.7,2.56226381]
[1767369946354,108.752,128.83,128.72,2.56226381]